bitfinex/quotes_SOLUSD_20260304
["timestamp","ask_amount","ask_price","bid_price","bid_amount"]
[1772654137699,0.79507042,93.591,93.545,10.69004222]
[1772654137995,0.79507042,93.571,93.545,10.69004222]
[1772654138390,0.79507042,93.571,93.541,0.97838123]
[1772654138604,0.79507042,93.571,93.535,10.69107511]
[1772654139218,0.79507042,93.571,93.536,0.97838123]
[1772654139708,0.79507042,93.571,93.535,10.69107511]
[1772654140096,0.80220686,93.564,93.529,0.97838123]
[1772654140412,0.80220686,93.56,93.529,0.97838123]
[1772654141103,0.80571373,93.53,93.482,0.97838123]
[1772654141304,0.80571373,93.53,93.485,0.97838123]
[1772654142106,0.80571373,93.53,93.487,0.97838123]
[1772654142707,0.81260708,93.529,93.487,0.97838123]
[1772654142930,0.28432314,93.516,93.486,10.69678882]
[1772654143101,0.81260708,93.511,93.486,10.69678882]
[1772654143915,0.81599449,93.511,93.486,10.69678882]
[1772654144410,0.28432314,93.515,93.481,0.97838123]
[1772654144602,10.69255691,93.523,93.481,0.97838123]
[1772654144805,0.14216157,93.522,93.481,0.97838123]
[1772654145514,10.69255691,93.523,93.481,0.97838123]
[1772654145819,0.82265302,93.523,93.483,0.97838123]
[1772654145998,0.82265302,93.523,93.46,0.2]
[1772654145999,0.82265302,93.523,93.477,10.69777355]
[1772654146196,0.82265302,93.523,93.478,0.97838123]
[1772654146518,0.82592504,93.521,93.478,0.97838123]
[1772654146694,0.82592504,93.511,93.477,10.69777355]
[1772654146898,0.82592504,93.501,93.477,10.69777355]
[1772654148102,0.82592504,93.501,93.461,10.69965012]
[1772654148416,0.14216157,93.491,93.462,0.97838123]
[1772654149120,0.28432314,93.497,93.462,0.97838123]
[1772654149320,0.28432314,93.496,93.462,0.97838123]
[1772654149504,0.28432314,93.508,93.462,0.97838123]
[1772654149702,0.28432314,93.504,93.462,0.97838123]
[1772654150624,59.32530517,93.701,93.464,1.0255744]
[1772654150625,0.84172997,93.501,93.464,1.0255744]
[1772654150823,0.28432314,93.51,93.464,1.0255744]
[1772654150824,0.28432314,93.508,93.464,1.0255744]
[1772654151214,0.84172997,93.538,93.467,1.0255744]
[1772654151611,0.84478287,93.524,93.467,1.0255744]
[1772654151924,0.28432314,93.513,93.467,1.0255744]
[1772654152926,0.28432314,93.513,93.472,1.0255744]
[1772654153622,0.28432314,93.521,93.472,1.0255744]
[1772654153821,1.13510702,93.521,93.472,1.0255744]
[1772654154207,0.85373279,93.518,93.472,1.0255744]
[1772654154414,0.14216157,93.516,93.472,1.0255744]
[1772654154611,0.85373279,93.51,93.472,1.0255744]
[1772654155312,37.42394918,93.523,93.473,10.6982765]
[1772654155313,0.85664783,93.508,93.473,10.6982765]
[1772654155512,0.85664783,93.508,93.474,1.0255744]
[1772654156004,0.85664783,93.508,93.46,0.2]
[1772654156005,0.85664783,93.5,93.467,10.69894481]
[1772654156622,0.85952938,93.49,93.462,10.69950447]
[1772654157018,0.85952938,93.49,93.462,11.72507887]
[1772654157621,0.28432314,93.485,93.46,0.2]
[1772654157827,0.86237784,93.48,93.449,10.7010066]
[1772654158027,0.66237784,93.472,93.443,10.70163976]
[1772654158234,0.66237784,93.47,93.443,10.70163976]
[1772654158410,0.28432314,93.476,93.444,1.0255744]
[1772654158607,0.66519359,93.471,93.444,1.0255744]
[1772654159522,0.66519359,93.471,93.439,10.70213949]
[1772654159710,0.66519359,93.471,93.434,1.0255744]
[1772654160109,0.66797698,93.498,93.465,1.0255744]
[1772654162029,10.69553033,93.497,93.466,10.69907773]
[1772654162229,0.28432314,93.496,93.467,1.0255744]
[1772654162729,0.67613683,93.495,93.467,1.0255744]
[1772654164215,3.69383402,93.53,93.425,104.4]
[1772654164216,0.68008907,93.513,93.469,1.0255744]
[1772654164417,104.9,93.562,93.469,1.0255744]
[1772654164418,0.28432314,93.517,93.469,1.0255744]
[1772654164728,0.68008907,93.515,93.469,1.0255744]
[1772654164928,0.96441221,93.514,93.469,1.0255744]
[1772654165129,0.82225064,93.514,93.469,1.0255744]
[1772654165327,0.28432314,93.513,93.469,1.0255744]
[1772654166427,0.68008907,93.514,93.471,1.0255744]
[1772654166628,10.69370034,93.513,93.471,1.0255744]
[1772654167026,0.68395104,93.52,93.471,1.0255744]
[1772654167229,0.68584882,93.514,93.471,1.0255744]
[1772654168616,0.68772481,93.512,93.473,1.0255744]
[1772654168842,0.68772481,93.506,93.472,10.69839096]
[1772654169141,0.68772481,93.504,93.472,10.69839096]
[1772654170218,0.28432314,93.499,93.449,1.0255744]
[1772654170412,0.28432314,93.475,93.449,1.0255744]
[1772654170612,10.6982765,93.473,93.443,10.70164243]
[1772654170817,11.38968888,93.473,93.443,10.70164243]
[1772654171132,0.69141238,93.472,93.443,10.70164243]
[1772654171912,0.69322446,93.47,93.443,10.70164243]
[1772654172547,0.69501572,93.466,93.443,10.70164243]
[1772654172838,0.69501572,93.479,93.443,11.72721683]
[1772654173037,0.28432314,93.478,93.443,11.72721683]
[1772654173939,10.98202741,93.478,93.443,11.72721683]
[1772654174736,10.98202741,93.478,93.444,1.0255744]
[1772654175038,11.68056418,93.478,93.444,1.0255744]
[1772654175246,0.28432314,93.476,93.444,1.0255744]
[1772654175950,10.69816205,93.474,93.445,10.70148215]
[1772654176244,10.69816205,93.474,93.445,1.0255744]
[1772654176450,10.69816205,93.474,93.413,3.69383402]
[1772654176451,0.7019774,93.465,93.433,1.0255744]
[1772654176740,0.7019774,93.465,93.42,0.2]
[1772654177245,0.7019774,93.465,93.42,11.92989146]
[1772654177752,0.7019774,93.465,93.421,1.0255744]
[1772654178562,0.50699155,93.452,93.41,0.2]
[1772654178755,37.44757339,93.464,93.395,1.05136137]
[1772654178756,0.30699155,93.432,93.395,1.05136137]
[1772654179044,0.30699155,93.424,93.395,1.05136137]
[1772654179245,0.30699155,93.424,93.382,1.05136137]
[1772654180467,0.31023907,93.422,93.384,1.05136137]
[1772654181452,10.70400222,93.423,93.384,1.05136137]
[1772654181453,0.28432314,93.417,93.384,1.05136137]
[1772654181659,0.31183491,93.447,93.384,1.05136137]
[1772654181829,0.59615805,93.446,93.384,1.05136137]
[1772654182026,0.31183491,93.437,93.384,1.05136137]
[1772654182228,0.31183491,93.425,93.384,1.05136137]
[1772654182736,0.28432314,93.443,93.386,1.05136137]
[1772654182930,53.48884838,93.478,93.385,37.47925255]
[1772654182931,0.31341242,93.456,93.389,1.05136137]
[1772654183139,0.31341242,93.453,93.389,1.05136137]
[1772654183446,0.28432314,93.45,93.389,1.05136137]
[1772654183849,0.14216157,93.45,93.389,1.05136137]
[1772654184839,10.98523271,93.45,93.394,1.05136137]
[1772654186745,26.75076225,93.456,93.394,1.05136137]
[1772654186746,10.70018342,93.457,93.394,1.05136137]
[1772654187056,0.28432314,93.46,93.396,1.03134273]
[1772654187250,0.14216157,93.46,93.396,1.03134273]
[1772654187855,0.32104382,93.454,93.396,1.03134273]
[1772654188942,11.02157222,93.454,93.398,1.03134273]
[1772654189352,10.7005284,93.454,93.398,1.03134273]
[1772654189658,0.32337611,93.445,93.398,1.03134273]
[1772654190750,0.32337611,93.445,93.38,0.2]
[1772654190751,0.28432314,93.458,93.399,37.47363461]
[1772654191058,1.07686668,93.455,93.399,37.47363461]
[1772654192869,1.07686668,93.444,93.402,1.03134273]
[1772654193641,1.07686668,93.452,93.402,1.03134273]
[1772654194058,0.28432314,93.459,93.405,1.03134273]
[1772654194274,1.07686668,93.454,93.405,1.03134273]
[1772654194454,1.07686668,93.463,93.405,1.03134273]
[1772654194758,1.07686668,93.462,93.407,1.03134273]
[1772654195954,10.69965012,93.461,93.408,37.47002397]
[1772654196159,1.07686668,93.46,93.409,1.03134273]
[1772654196859,1.07686668,93.5,93.412,1.03134273]
[1772654197158,1.07686668,93.5,93.418,1.03134273]
[1772654197658,37.43275471,93.501,93.418,1.03134273]
[1772654197659,1.07686668,93.488,93.418,1.03134273]
[1772654197850,1.07686668,93.484,93.418,1.03134273]
[1772654198156,1.07686668,93.482,93.423,1.03134273]
[1772654198553,0.28432314,93.488,93.423,1.03134273]
[1772654199444,10.69610234,93.492,93.429,1.03134273]
[1772654200265,1.07686668,93.492,93.434,1.03134273]
[1772654200959,1.07686668,93.484,93.434,1.03134273]
[1772654202562,1.07686668,93.482,93.436,1.03134273]
[1772654204563,1.07686668,93.474,93.438,1.03134273]
[1772654204759,1.07686668,93.474,93.432,10.70286484]
[1772654204956,1.07686668,93.454,93.383,1.03134273]
[1772654205165,1.07686668,93.444,93.383,1.03134273]
[1772654205344,1.07686668,93.434,93.383,1.03134273]
[1772654205848,1.07686668,93.424,93.383,1.03134273]
[1772654206464,1.07686668,93.424,93.385,1.03134273]
[1772654206863,0.28432314,93.427,93.385,1.03134273]
[1772654207857,1.07686668,93.45,93.385,1.03134273]
[1772654208057,0.28432314,93.447,93.385,1.03134273]
[1772654208266,1.07686668,93.434,93.385,1.03134273]
[1772654208774,1.12235222,93.432,93.387,1.11819988]
[1772654209180,1.12235222,93.424,93.387,1.11819988]
[1772654210764,10.70400222,93.423,93.388,10.70801387]
[1772654210972,10.70400222,93.423,93.389,1.11819988]
[1772654211276,1.12235222,93.422,93.389,1.11819988]
[1772654214555,10.70263044,93.435,93.391,1.11819988]
[1772654215065,11.82498266,93.435,93.391,1.11819988]
[1772654215378,1.12235222,93.434,93.391,1.11819988]
[1772654216259,1.12235222,93.432,93.393,1.11819988]
[1772654216482,1.12235222,93.43,93.393,1.11819988]
[1772654216787,1.12235222,93.424,93.387,10.70806572]
[1772654216958,1.12235222,93.424,93.388,1.11819988]
[1772654219064,1.12235222,93.422,93.39,1.11819988]
[1772654220683,1.12235222,93.422,93.389,10.70789921]
[1772654221274,1.12235222,93.42,93.385,1.11819988]
[1772654222791,1.12235222,93.414,93.385,1.11819988]
[1772654223089,1.12235222,93.414,93.381,10.70881656]
[1772654224175,1.12235222,93.412,93.381,10.70881656]
[1772654224372,1.12235222,93.412,93.381,11.82701644]
[1772654224564,1.12235222,93.412,93.382,1.11819988]
[1772654228564,1.12235222,93.41,93.382,1.11819988]
[1772654229177,1.12235222,93.394,93.37,0.2]
[1772654229384,1.12235222,93.384,93.349,11.83067755]
[1772654229592,1.12235222,93.384,93.349,1.11819988]
[1772654229976,1.12235222,93.374,93.36,1e-08]
[1772654230369,1.12235222,93.374,93.339,10.71357405]
[1772654230569,1.12235222,93.374,93.333,1.11819988]
[1772654230570,1.12235222,93.365,93.333,1.11819988]
[1772654232087,1.12235222,93.365,93.332,10.71438071]
[1772654232689,1.12235222,93.363,93.332,11.83258059]
[1772654232989,9.67811868,93.364,93.332,11.83258059]
[1772654233292,9.67811868,93.364,93.333,1.11819988]
[1772654234376,3.69383402,93.409,93.333,1.11819988]
[1772654234582,0.28432314,93.404,93.333,1.11819988]
[1772654234782,0.28432314,93.402,93.335,1.11819988]
[1772654234972,37.4720298,93.403,93.335,1.11819988]
[1772654235288,0.45052473,93.396,93.335,1.11819988]
[1772654235488,0.28432314,93.389,93.335,1.11819988]
[1772654235690,0.28432314,93.387,93.335,1.11819988]
[1772654235878,0.45052473,93.385,93.335,1.11819988]
[1772654236072,0.28432314,93.366,93.335,1.11819988]
[1772654236286,0.45052473,93.365,93.335,1.11819988]
[1772654239801,0.47603937,93.394,93.337,1.18213442]
[1772654240099,0.47603937,93.384,93.337,1.18213442]
[1772654240406,0.48175293,93.364,93.337,1.18213442]
[1772654241810,10.71088118,93.363,93.337,1.18213442]
[1772654241990,10.71088118,93.363,93.338,10.71375002]
[1772654242191,42.82477264,93.404,93.338,10.71375002]
[1772654242192,0.28432314,93.384,93.339,1.18213442]
[1772654244592,0.28432314,93.382,93.341,1.18213442]
[1772654244783,0.78828157,93.382,93.341,1.18213442]
[1772654246300,10.70745147,93.393,93.341,1.18213442]
[1772654246507,0.14216157,93.402,93.343,1.1364322]
[1772654246693,0.51995197,93.401,93.343,1.1364322]
[1772654246888,0.80427511,93.4,93.343,1.1364322]
[1772654247086,0.51995197,93.4,93.343,1.1364322]
[1772654247290,0.28432314,93.399,93.345,3.69383402]
[1772654247506,0.28432314,93.399,93.346,1.1364322]
[1772654247814,3.69383402,93.433,93.346,1.1364322]
[1772654247815,0.52516116,93.424,93.346,1.1364322]
[1772654248288,0.28432314,93.411,93.346,1.1364322]
[1772654248488,3.69383402,93.453,93.351,1.1364322]
[1772654248489,0.28432314,93.405,93.351,1.1364322]
[1772654249593,0.28432314,93.407,93.351,1.1364322]
[1772654249809,0.28432314,93.405,93.351,1.1364322]
[1772654250715,0.28432314,93.403,93.356,1.1364322]
[1772654250909,0.8247556,93.403,93.356,1.1364322]
[1772654251211,0.54043246,93.402,93.356,1.1364322]
[1772654252715,0.55032322,93.4,93.358,1.1364322]
[1772654252903,0.55032322,93.392,93.358,1.1364322]
[1772654254720,0.84431122,93.39,93.358,1.1364322]
[1772654255097,0.28432314,93.388,93.358,1.1364322]
[1772654255296,0.84906055,93.388,93.358,1.1364322]
[1772654256393,0.56943219,93.373,93.339,1.1364322]
[1772654256594,0.56943219,93.371,93.339,1.1364322]
[1772654256817,0.56943219,93.369,93.339,1.1364322]
[1772654257114,0.56943219,93.361,93.323,1.1364322]
[1772654259103,0.5786606,93.359,93.325,1.1364322]
[1772654260512,0.58767823,93.351,93.324,10.71535725]
[1772654260712,10.71191379,93.354,93.317,1.1364322]
[1772654260713,0.28432314,93.347,93.317,1.1364322]
[1772654261014,0.28432314,93.347,93.32,1.3364322]
[1772654261317,0.28432314,93.347,93.322,1.1364322]
[1772654262212,37.49169826,93.354,93.322,1.1364322]
[1772654262213,0.28432314,93.353,93.322,1.1364322]
[1772654262613,0.28432314,93.353,93.324,1.1364322]
[1772654263405,10.71214328,93.352,93.324,1.1364322]
[1772654264206,0.28432314,93.365,93.324,1.1364322]
[1772654264397,0.28432314,93.358,93.324,1.1364322]
[1772654264597,0.28432314,93.353,93.324,1.1364322]
[1772654264818,0.28432314,93.353,93.326,1.1364322]
[1772654266622,10.71214328,93.352,93.326,1.1364322]
[1772654266818,0.61351405,93.351,93.32,0.2]
[1772654268721,0.62577573,93.349,93.32,0.2]
[1772654270205,0.62577573,93.349,93.32,1.44354137]
[1772654270821,0.63371725,93.341,93.32,0.2]
[1772654272525,37.49410806,93.348,93.321,1.24354137]
[1772654272526,10.7126023,93.348,93.321,1.24354137]
[1772654272706,27.42004536,93.359,93.321,1.24354137]
[1772654272707,0.28432314,93.357,93.321,1.24354137]
[1772654273029,0.28432314,93.355,93.323,1.24354137]
[1772654273831,0.28432314,93.353,93.325,1.24354137]
[1772654274020,0.64529073,93.352,93.325,1.24354137]
[1772654274328,0.28432314,93.342,93.32,1.44354137]
[1772654274531,0.28432314,93.353,93.322,1.24354137]
[1772654275227,0.65278653,93.352,93.322,1.24354137]
[1772654276437,0.65646998,93.35,93.322,1.24354137]
[1772654276607,10.71225803,93.351,93.32,0.2]
[1772654276608,0.28432314,93.343,93.32,0.2]
[1772654276929,0.28432314,93.343,93.32,1.44354137]
[1772654277317,0.94443426,93.35,93.32,1.44354137]
[1772654278110,0.28432314,93.346,93.32,1.44354137]
[1772654279733,0.28432314,93.357,93.321,1.24354137]
[1772654279908,0.28432314,93.356,93.321,1.24354137]
[1772654280111,0.95159156,93.356,93.321,1.24354137]
[1772654280311,0.67078553,93.343,93.3,1.34354137]
[1772654280514,1.21399946,93.321,93.272,26.80308946]
[1772654280718,1.4983226,93.32,93.272,26.80308946]
[1772654280919,1.4983226,93.32,93.278,10.72054701]
[1772654281118,1.4983226,93.32,93.282,10.72014925]
[1772654281334,1.21399946,93.357,93.282,26.80021375]
[1772654281514,0.28432314,93.342,93.291,10.71914761]
[1772654281719,0.28432314,93.332,93.272,3.69383402]
[1772654281933,1.4983226,93.332,93.272,3.69383402]
[1772654282630,1.4983226,93.332,93.291,1.24354137]
[1772654283616,1.4983226,93.33,93.291,1.24354137]
[1772654285641,1.4983226,93.33,93.274,1.24354137]
[1772654285819,1.4983226,93.328,93.264,1.24354137]
[1772654286241,1.4983226,93.328,93.256,10.72316747]
[1772654286242,1.4983226,93.328,93.256,26.8078383]
[1772654286535,1.4983226,93.328,93.272,1.24354137]
[1772654286917,1.4983226,93.328,93.263,1.24354137]
[1772654289340,1.4983226,93.326,93.263,1.24354137]
[1772654289541,1.4983226,93.326,93.269,1.24354137]
[1772654290630,1.4983226,93.326,93.258,1.24354137]
[1772654290827,1.4983226,93.326,93.271,1.24354137]
[1772654291834,1.4983226,93.324,93.271,1.24354137]
[1772654292036,1.4983226,93.324,93.249,0.91678194]
[1772654292241,1.4983226,93.324,93.264,10.72221057]
[1772654292446,1.4983226,93.321,93.249,0.91678194]
[1772654292621,1.21399946,93.305,93.213,26.82018425]
[1772654292822,3.69383402,93.301,93.24,1e-08]
[1772654293324,3.69383402,93.301,93.241,1.24354137]
[1772654293524,3.69383402,93.322,93.241,1.24354137]
[1772654294038,3.69383402,93.318,93.243,1.24354137]
[1772654294844,1.4983226,93.317,93.243,1.24354137]
[1772654295938,1.35616103,93.317,93.243,1.24354137]
[1772654296122,1.35616103,93.315,93.245,1.24354137]
[1772654296537,0.14216157,93.313,93.245,1.24354137]
[1772654296837,1.21399946,93.296,93.245,1.24354137]
[1772654299442,37.50696556,93.316,93.245,1.24354137]
[1772654299624,1.58872851,93.315,93.247,1.25994683]
[1772654301647,0.14216157,93.308,93.247,1.25994683]
[1772654301846,1.30440537,93.287,93.247,1.25994683]
[1772654304628,1.58872851,93.285,93.247,1.25994683]
[1772654305557,1.58872851,93.285,93.24,1e-08]
[1772654306050,1.65210365,93.282,93.217,1.32564219]
[1772654306656,1.65210365,93.282,93.21,10.72836844]
[1772654306657,1.65210365,93.277,93.21,10.72836844]
[1772654306953,1.65210365,93.277,93.207,1.32564219]
[1772654307829,1.65210365,93.277,93.208,10.72869281]
[1772654308234,1.65210365,93.277,93.22,1.42564219]
[1772654309453,1.65210365,93.275,93.222,1.32564219]
[1772654309638,1.36778051,93.275,93.222,1.32564219]
[1772654310033,0.28432314,93.272,93.222,1.32564219]
[1772654310249,0.14216157,93.266,93.222,1.32564219]
[1772654310455,1.50994208,93.272,93.222,1.32564219]
[1772654310760,1.36778051,93.267,93.222,1.32564219]
[1772654314134,0.14216157,93.265,93.224,1.32564219]
[1772654314755,0.28432314,93.263,93.224,1.32564219]
[1772654315351,1.65210365,93.263,93.224,1.32564219]
[1772654315661,1.36778051,93.294,93.225,1.32564219]
[1772654315849,10.71857314,93.296,93.225,1.32564219]
[1772654316157,1.36778051,93.3,93.227,1.32564219]
[1772654317640,0.28432314,93.295,93.227,1.32564219]
[1772654317959,1.36778051,93.29,93.229,1.32564219]
[1772654320153,0.28432314,93.298,93.231,1.32564219]
[1772654320350,1.65210365,93.298,93.231,1.32564219]
[1772654323075,1.65210365,93.296,93.233,1.32564219]
[1772654325169,1.65210365,93.296,93.232,37.54075853]
[1772654325170,1.65210365,93.294,93.235,1.32564219]
[1772654329270,37.51621235,93.293,93.236,10.72547084]
[1772654329465,1.72177664,93.292,93.237,1.42417774]
[1772654331181,1.72177664,93.292,93.222,1.42417774]
[1772654331463,1.4374535,93.273,93.224,1.42417774]
[1772654331665,1.4374535,93.261,93.224,1.42417774]
[1772654333364,1.4374535,93.259,93.224,1.42417774]
[1772654333544,1.4374535,93.259,93.226,1.42417774]
[1772654335475,1.4374535,93.257,93.226,1.42417774]
[1772654336575,1.4374535,93.257,93.228,1.42417774]
[1772654339364,1.4374535,93.255,93.228,1.42417774]
[1772654340257,1.4374535,93.251,93.221,1.42417774]
[1772654340458,1.4374535,93.255,93.221,1.42417774]
[1772654340865,1.4374535,93.31,93.221,1.42417774]
[1772654341072,1.4374535,93.309,93.221,1.42417774]
[1772654341274,3.69383402,93.302,93.223,1.42417774]
[1772654341579,1.4374535,93.297,93.223,1.42417774]
[1772654341759,1.4374535,93.277,93.223,1.42417774]
[1772654341968,1.4374535,93.271,93.223,1.42417774]
[1772654342172,1.4374535,93.271,93.22,10.82725152]
[1772654342980,1.4374535,93.271,93.221,1.42417774]
[1772654343181,1.4374535,93.271,93.22,0.1]
[1772654343485,1.72177664,93.26,93.19,0.1]
[1772654343785,1.4374535,93.245,93.191,1.42417774]
[1772654344376,1.4374535,93.245,93.19,0.1]
[1772654344864,1.4374535,93.245,93.191,1.42417774]
[1772654345069,1.4374535,93.245,93.19,0.1]
[1772654345704,1.4374535,93.243,93.191,1.42417774]
[1772654347802,1.4374535,93.241,93.192,10.7305348]
[1772654348675,1.4374535,93.241,93.19,0.1]
[1772654349003,37.8210555,93.242,93.19,0.1]
[1772654349004,1.4374535,93.221,93.19,0.1]
[1772654350618,1.4374535,93.219,93.19,0.1]
[1772654354212,1.4374535,93.217,93.19,0.1]
[1772654354402,1.4374535,93.22,93.19,1.52417774]
[1772654355915,1.4374535,93.218,93.19,1.52417774]
[1772654356294,1.4374535,93.218,93.19,12.25488169]
[1772654356492,1.4374535,93.218,93.19,1.52417774]
[1772654357718,1.4374535,93.218,93.19,0.1]
[1772654357889,1.4374535,93.216,93.19,0.1]
[1772654358288,1.4374535,93.21,93.19,0.1]
[1772654358890,1.39105588,93.206,93.18,1e-08]
[1772654359098,1.39105588,93.2,93.18,1e-08]
[1772654360282,0.28432314,93.223,93.18,1.36773551]
[1772654360483,1.39105588,93.21,93.18,1.36773551]
[1772654361610,1.39105588,93.208,93.18,1.36773551]
[1772654363604,10.72857771,93.209,93.181,10.73180154]
[1772654363805,1.39105588,93.213,93.182,1.3677355]
[1772654364114,1.39105588,93.211,93.182,1.3677355]
[1772654364499,1.39105588,93.211,93.18,1e-08]
[1772654365698,0.28432314,93.212,93.18,1e-08]
[1772654365699,1.39105588,93.209,93.18,1e-08]
[1772654367605,1.42585431,93.207,93.18,1e-08]
[1772654369719,1.42585431,93.199,93.18,1e-08]
[1772654370908,1.42585431,93.191,93.164,1.42587733]
[1772654371517,1.42585431,93.191,93.165,1.42587733]
[1772654371706,10.7307651,93.19,93.165,1.42587733]
[1772654373321,12.15661941,93.19,93.165,1.42587733]
[1772654373514,1.42585431,93.189,93.165,1.42587733]
[1772654374124,27.10835747,93.2,93.167,1.42587733]
[1772654374125,10.73053519,93.192,93.167,1.42587733]
[1772654374311,12.15443202,93.209,93.167,1.42587733]
[1772654374520,1.42585431,93.208,93.167,1.42587733]
[1772654374813,1.42585431,93.206,93.167,1.42587733]
[1772654375020,1.42585431,93.2,93.167,1.42587733]
[1772654375729,1.42585431,93.207,93.167,1.42587733]
[1772654376318,3.69383402,93.23,93.157,1.42587733]
[1772654376319,1.42585431,93.201,93.157,1.42587733]
[1772654379926,1.42585431,93.199,93.159,1.42587733]
[1772654380630,10.72961373,93.2,93.152,1.42587733]
[1772654380631,1.42585431,93.195,93.152,1.42587733]
[1772654380938,1.42585431,93.191,93.152,1.42587733]
[1772654383231,1.42585431,93.189,93.154,1.42587733]
[1772654386018,10.7309954,93.188,93.154,1.42587733]
[1772654386218,1.42585431,93.187,93.154,1.42587733]
[1772654386823,37.55848391,93.188,93.134,5.58246594]
[1772654386824,1.42585431,93.181,93.145,1.42587733]
[1772654387327,1.42585431,93.181,93.151,1.42587733]
[1772654388016,1.42585431,93.181,93.152,1.42587733]
[1772654388428,1.33354684,93.179,93.152,1.42587733]
[1772654390436,42.89364103,93.254,93.153,1.3847414]
[1772654390437,10.73148329,93.184,93.153,1.3847414]
[1772654391427,1.33354684,93.192,93.155,1.3847414]
[1772654391630,1.33354684,93.221,93.155,1.3847414]
[1772654391824,0.28432314,93.22,93.155,1.3847414]
[1772654392027,1.33354684,93.213,93.155,1.3847414]
[1772654392540,1.33354684,93.211,93.155,1.3847414]
[1772654394619,1.61786998,93.209,93.157,1.3847414]
[1772654395433,1.61786998,93.209,93.151,1.3847414]
[1772654396519,10.72869281,93.208,93.151,1.3847414]
[1772654396736,1.61786998,93.207,93.153,1.3847414]
[1772654398938,1.61786998,93.205,93.155,1.3847414]
[1772654402325,1.33354684,93.252,93.16,1.3847414]
[1772654402541,1.33354684,93.25,93.16,1.3847414]
[1772654402749,1.47570841,93.242,93.16,1.3847414]
[1772654403039,3.69383402,93.248,93.16,1.3847414]
[1772654403040,0.14216157,93.225,93.16,1.3847414]
[1772654403248,1.33354684,93.226,93.16,1.3847414]
[1772654403543,1.33354684,93.226,93.163,0.28432314]
[1772654403746,1.33354684,93.252,93.171,0.28432314]
[1772654403939,1.33354684,93.252,93.184,1.3847414]
[1772654404132,1.33354684,93.25,93.184,1.3847414]
[1772654404444,1.33354684,93.248,93.189,1.3847414]
[1772654405248,1.33354684,93.248,93.188,3.69383402]
[1772654405249,1.33354684,93.288,93.195,1.3847414]
[1772654406236,1.33354684,93.288,93.194,0.28432314]
[1772654406237,1.33354684,93.286,93.206,3.69383402]
[1772654406433,1.33354684,93.286,93.215,1.3847414]
[1772654407346,1.33354684,93.294,93.224,0.14216157]
[1772654407537,1.33354684,93.294,93.219,3.69383402]
[1772654407538,1.33354684,93.294,93.235,1.3847414]
[1772654408248,1.33354684,93.294,93.197,1.07299591]
[1772654408249,1.33354684,93.312,93.245,1.3847414]
[1772654408430,1.33354684,93.31,93.25,1.3847414]
[1772654408747,26.78792644,93.326,93.256,1.3847414]
[1772654408748,10.71622136,93.317,93.256,1.3847414]
[1772654409129,1.33354684,93.319,93.256,1.3847414]
[1772654409743,1.33354684,93.327,93.266,1.3847414]
[1772654410044,10.71549591,93.323,93.266,1.3847414]
[1772654410244,1.33354684,93.318,93.266,1.3847414]
[1772654410547,1.33354684,93.316,93.268,1.3847414]
[1772654413049,1.61786998,93.313,93.261,1.3847414]
[1772654413934,1.33354684,93.311,93.263,1.3847414]
[1772654414247,1.33354684,93.301,93.255,1.3847414]
[1772654414653,1.33354684,93.291,93.251,10.72374558]
[1772654415656,1.33354684,93.291,93.247,1.3847414]
[1772654415853,1.33354684,93.291,93.239,1.3847414]
[1772654416059,1.33354684,93.289,93.241,1.3847414]
[1772654416439,1.33354684,93.289,93.212,104.4]
[1772654416440,1.33354684,93.281,93.212,1.3847414]
[1772654416651,1.33354684,93.271,93.213,1.3847414]
[1772654416943,1.33354684,93.271,93.216,1.3847414]
[1772654418343,10.72156105,93.27,93.217,10.72765697]
[1772654418652,1.32221433,93.269,93.218,1.27517017]
[1772654419057,1.32221433,93.261,93.218,1.27517017]
[1772654419265,1.32221433,93.261,93.217,10.72765697]
[1772654419748,1.32221433,93.261,93.218,1.27517017]
[1772654421959,1.32221433,93.26,93.22,1.27517017]
[1772654423160,1.32221433,93.278,93.22,1.27517017]
[1772654423356,11.00461987,93.281,93.22,1.27517017]
[1772654423357,1.32221433,93.272,93.22,1.27517017]
[1772654423952,1.32221433,93.272,93.222,1.27517017]
[1772654424867,1.32221433,93.271,93.222,1.27517017]
[1772654425947,3.69383402,93.314,93.223,12.00213669]
[1772654425948,1.32221433,93.269,93.223,12.00213669]
[1772654427748,1.32648965,93.261,93.215,1.27594751]
[1772654427950,53.60429118,93.277,93.186,1.27594751]
[1772654427951,1.61081279,93.258,93.186,1.27594751]
[1772654428477,1.61081279,93.258,93.189,1.27594751]
[1772654429952,1.32648965,93.256,93.194,1.56027065]
[1772654433775,1.32648965,93.254,93.199,1.27594751]
[1772654435700,1.32648965,93.254,93.204,1.27594751]
[1772654436976,1.32648965,93.273,93.216,1.27594751]
[1772654438074,1.32648965,93.271,93.218,1.27594751]
[1772654439576,151.46017976,93.314,93.217,37.5467994]
[1772654439577,1.61081279,93.293,93.225,1.27594751]
[1772654439775,1.32648965,93.293,93.235,1.27594751]
[1772654440179,1.32648965,93.293,93.246,1.27594751]
[1772654441978,1.32648965,93.311,93.246,1.27594751]
[1772654442182,1.32648965,93.309,93.248,1.27594751]
[1772654443385,1.32648965,93.301,93.248,1.27594751]